fUSD/lending_fUSD_20260427
["ID","MTS","AMOUNT","RATE_DAILY","PERIOD"]
[421223785,1777270020174,-749.0,8.379e-05,2]
[421223786,1777270020205,-749.0,8.379e-05,2]
[421223787,1777270020235,-749.0,8.379e-05,2]
[421223788,1777270020265,-749.0,8.379e-05,2]
[421223789,1777270020294,-749.0,8.379e-05,2]
[421223790,1777270020324,-749.0,8.379e-05,2]
[421223791,1777270020354,-749.0,8.379e-05,2]
[421223792,1777270020384,-749.0,8.379e-05,2]
[421223793,1777270020413,-749.0,8.379e-05,2]
[421223794,1777270020442,-749.0,8.379e-05,2]
[421223795,1777270020471,-749.0,8.379e-05,2]
[421223796,1777270020499,-749.0,8.379e-05,2]
[421223797,1777270020528,-755.0,8.379e-05,2]
[421223798,1777270020558,-433.87,8.388e-05,2]
[421223799,1777270020587,-433.87,8.388e-05,2]
[421223800,1777270020965,-150.0,8.414e-05,2]
[421223801,1777270020997,-150.0,8.414e-05,2]
[421223802,1777270021025,-500.0,8.453e-05,2]
[421223803,1777270021059,-500.0,8.453e-05,2]
[421223804,1777270021093,-500.0,8.453e-05,2]
[421223805,1777270021127,-500.0,8.453e-05,2]
[421223806,1777270021164,-500.0,8.453e-05,2]
[421223807,1777270021201,-500.0,8.453e-05,2]
[421223808,1777270021240,-500.0,8.453e-05,2]
[421223809,1777270021277,-500.0,8.453e-05,2]
[421223810,1777270021313,-500.0,8.453e-05,2]
[421223811,1777270021351,-500.0,8.453e-05,2]
[421223812,1777270021386,-500.0,8.453e-05,2]
[421223813,1777270021425,-500.0,8.453e-05,2]
[421223814,1777270021458,-500.0,8.453e-05,2]
[421223815,1777270021492,-500.0,8.453e-05,2]
[421223816,1777270021528,-500.0,8.453e-05,2]
[421223817,1777270021565,-500.0,8.453e-05,2]
[421223818,1777270021600,-500.0,8.453e-05,2]
[421223819,1777270021635,-500.0,8.453e-05,2]
[421223820,1777270021670,-500.0,8.453e-05,2]
[421223821,1777270021706,-500.0,8.453e-05,2]
[421223822,1777270021742,-500.0,8.453e-05,2]
[421223823,1777270021776,-500.0,8.453e-05,2]
[421223824,1777270021811,-500.0,8.453e-05,2]
[421223825,1777270021845,-500.0,8.453e-05,2]
[421223826,1777270021879,-500.0,8.453e-05,2]
[421223827,1777270021917,-500.0,8.453e-05,2]
[421223828,1777270021952,-500.0,8.453e-05,2]
[421223829,1777270021986,-500.0,8.453e-05,2]
[421223830,1777270022021,-500.0,8.453e-05,2]
[421223831,1777270022057,-500.0,8.453e-05,2]
[421223832,1777270022092,-409.00114875,8.453e-05,2]
[421223833,1777270022127,-500.0,8.453e-05,2]
[421223834,1777270022160,-500.0,8.453e-05,2]
[421223835,1777270022195,-500.0,8.453e-05,2]
[421223836,1777270022229,-368.00642126,8.453e-05,2]
[421223837,1777270022263,-500.0,8.453e-05,2]
[421223838,1777270022298,-500.0,8.453e-05,2]
[421223839,1777270022333,-500.0,8.453e-05,2]
[421223840,1777270022368,-500.0,8.453e-05,2]
[421223841,1777270022402,-500.0,8.453e-05,2]
[421223842,1777270022437,-500.0,8.453e-05,2]
[421223843,1777270022470,-500.0,8.453e-05,2]
[421223844,1777270022507,-500.0,8.453e-05,2]
[421223845,1777270022542,-500.0,8.453e-05,2]
[421223846,1777270022575,-500.0,8.453e-05,2]
[421223847,1777270022609,-500.0,8.453e-05,2]
[421223848,1777270022643,-500.0,8.453e-05,2]
[421223849,1777270022676,-500.0,8.453e-05,2]
[421223850,1777270022709,-500.0,8.453e-05,2]
[421223851,1777270022741,-500.0,8.453e-05,2]
[421223852,1777270022774,-550.0,8.453e-05,2]
[421223853,1777270022807,-500.0,8.453e-05,2]
[421223854,1777270022839,-679743.3732,8.454e-05,2]
[421223855,1777270022869,-150.0,8.468e-05,2]
[421223856,1777270022897,-538.82498789,8.472e-05,2]
[421223857,1777270022926,-300.0,8.472e-05,2]
[421223858,1777270022956,-300.0,8.509e-05,2]
[421223859,1777270022985,-300.0,8.509e-05,2]
[421223860,1777270023014,-300.0,8.509e-05,2]
[421223861,1777270023044,-150.0,8.522e-05,2]
[421223862,1777270023092,-1200.0,8.553e-05,2]
[421223863,1777270023124,-300.0,8.553e-05,2]
[421223864,1777270023154,-33096.7482,8.554e-05,2]
[421223865,1777270023186,-2500.0,8.554e-05,2]
[421223866,1777270023735,-150.0,8.576e-05,2]
[421223867,1777270023764,-420.0,8.602e-05,2]
[421223868,1777270023792,-250.0,8.628e-05,2]
[421223869,1777270023822,-150.0,8.63e-05,2]
[421223870,1777270023851,-158.65291331,8.63e-05,2]
[421223871,1777270023879,-150.0,8.63e-05,2]
[421223872,1777270023909,-209.89393966,8.63e-05,2]
[421223873,1777270023938,-150.0,8.63e-05,2]
[421223874,1777270023968,-150.0,8.63e-05,2]
[421223875,1777270023998,-151.0,8.651e-05,2]
[421223876,1777270024031,-1253.57365483,8.652e-05,2]
[421223877,1777270024060,-356.68728314,8.652e-05,2]
[421223878,1777270024089,-271.60144277,8.652e-05,2]
[421223879,1777270024117,-1000.0,8.653e-05,2]
[421223880,1777270024145,-250.0,8.653e-05,2]
[421223881,1777270024175,-560.41,8.653e-05,2]
[421223882,1777270024204,-155.76,8.655e-05,2]
[421223883,1777270024242,-1224830.53552899,8.656e-05,2]
[421223887,1777270188182,1738.35,0.00032844,120]
[421223891,1777270231881,-607.60449488,8.453e-05,2]
[421223892,1777270231891,-150.0,8.453e-05,2]
[421223893,1777270231901,-250.0,8.453e-05,2]
[421223894,1777270231910,-1200.0,8.453e-05,2]
[421223895,1777270231920,-260.0,8.453e-05,2]
[421223896,1777270231929,-1425.24550512,8.454e-05,2]
[421223897,1777270231940,-1410.02104493,8.454e-05,2]
[421223898,1777270232039,-314.57995572,8.454e-05,2]
[421223899,1777270232050,-448.42004428,8.454e-05,2]
[421223900,1777270232094,-30406.33006209,8.454e-05,2]
[421223901,1777270232107,-192343.80289182,8.454e-05,2]
[421223902,1777270232119,-28202.63078267,8.454e-05,2]
[421223910,1777270238220,-500.0,8.453e-05,2]
[421223911,1777270238230,-500.0,8.453e-05,2]
[421223912,1777270238239,-500.0,8.453e-05,2]
[421223913,1777270238249,-500.0,8.453e-05,2]
[421223914,1777270238258,-445.90011488,8.453e-05,2]
[421223915,1777270238267,-57587.07931993,8.454e-05,2]
[421223916,1777270238278,-777.97,8.454e-05,2]
[421223917,1777270238326,-793.66649967,8.454e-05,2]
[421223918,1777270238338,-1201907.41059377,8.454e-05,2]
[421223919,1777270238347,-1136226.39198842,8.553e-05,2]
[421223920,1777270238358,-1063.19770014,8.553e-05,2]
[421224054,1777270240945,-3899.45,8.553e-05,2]
[421224055,1777270240971,-882.0985481,8.553e-05,2]
[421224090,1777270244456,-281989.58070501,8.553e-05,2]
[421224091,1777270244469,-75939.28105833,8.553e-05,2]
[421224092,1777270244479,-33096.7482,8.554e-05,2]
[421224093,1777270244489,-10551.0072258,8.583e-05,2]
[421224094,1777270244498,-1502.21408876,8.656e-05,2]
[421224095,1777270244508,-152.0,8.689e-05,7]
[421224096,1777270244517,-433.87,8.724e-05,2]
[421224097,1777270244526,-151.0,8.753e-05,2]
[421224098,1777270244535,-215.07,8.8e-05,2]
[421224099,1777270244545,-239.788149,8.956e-05,2]
[421224100,1777270244554,-501.03989667,8.973e-05,2]
[421224101,1777270244563,-502.33081699,8.973e-05,2]
[421224102,1777270244573,-611.0448955,8.973e-05,2]
[421224103,1777270244582,-151.0,8.997e-05,2]
[421224104,1777270244592,-151.0,8.997e-05,2]
[421224105,1777270244601,-75944.2379189,9e-05,2]
[421224106,1777270244611,-1566.02400614,9.185e-05,2]
[421224107,1777270244620,-953.0,9.185e-05,5]
[421224108,1777270244630,-764.0,9.185e-05,5]
[421224109,1777270244639,-995.0,9.185e-05,5]
[421224110,1777270244649,-433.87,9.237e-05,2]
[421224111,1777270244658,-433.87,9.282e-05,2]
[421224112,1777270244667,-255.0,9.298e-05,2]
[421224113,1777270244676,-1680.0,9.298e-05,2]
[421224114,1777270244686,-155.0,9.521e-05,2]
[421224115,1777270244696,-150.0,9.672e-05,2]
[421224116,1777270244706,-567.1519,9.973e-05,2]
[421224117,1777270244715,-2006.02245146,0.0001,2]
[421224118,1777270244725,-18500.02,0.0001,2]
[421224119,1777270244735,-368.4379815,0.0001,2]
[421224120,1777270244744,-368.4379815,0.0001,2]
[421224121,1777270244753,-368.4379815,0.0001,2]
[421224122,1777270244763,-2696.88974314,0.0001,2]
[421224123,1777270244772,-178.32022726,0.0001,2]
[421224124,1777270244782,-151.0,0.0001,2]
[421224125,1777270244791,-151.0,0.0001,2]
[421224126,1777270244800,-151.0,0.0001,2]
[421224127,1777270244809,-151.0,0.0001,2]
[421224128,1777270244819,-151.0,0.0001,2]
[421224129,1777270244829,-151.0,0.0001,2]
[421224130,1777270244838,-151.0,0.0001,2]
[421224131,1777270244848,-151.0,0.0001,2]
[421224132,1777270244858,-151.0,0.0001,2]
[421224133,1777270244867,-151.0,0.0001,2]
[421224134,1777270244876,-151.0,0.0001,2]
[421224135,1777270244886,-151.0,0.0001,2]
[421224136,1777270244895,-151.0,0.0001,2]
[421224137,1777270244905,-151.0,0.0001,2]
[421224138,1777270244914,-286.09257819,0.0001,2]
[421224139,1777270244924,-2354.247932,0.00010192,2]
[421224140,1777270244934,-325.0,0.00010228,2]
[421224141,1777270244944,-433.87,0.00010383,2]
[421224142,1777270244953,-525.3037181,0.00010551,2]
[421224143,1777270244963,-500.0,0.00010673,2]
[421224144,1777270244972,-287370.54924926,0.000107,2]
[421224145,1777270244985,-1936.07282185,0.000107,2]
[421224146,1777270246047,-1386.90134169,0.0001,2]
[421224147,1777270246057,-13728.34809965,0.000107,2]
[421224148,1777270246068,-890.97398069,0.000107,2]
[421224149,1777270246079,-1971.91147274,0.000107,2]
[421224150,1777270246101,-9430.35816085,0.000107,2]
[421224157,1777270365088,400059.5,0.00032876,120]
[421224160,1777270462199,-2030.9457577,0.00032877,120]
[421224161,1777270462259,-214.46,0.0003964,120]
[421224162,1777270462293,-150.0,0.00039643,120]
[421224163,1777270462330,-570.29020384,0.0004,120]
[421224164,1777270462364,-194586.99969155,0.00040012,120]
[421224165,1777270462401,-674729.63659259,0.00040085,120]
[421224166,1777270462434,-2057.85457168,0.00040281,120]
[421224167,1777270462467,-2491267.6836667,0.00040299,120]
[421224168,1777270462500,-260.0,0.00040576,120]
[421224169,1777270462533,-1444.0,0.00040658,120]
[421224170,1777270462588,-161.0,0.000409,120]
[421224171,1777270462620,-880.36197551,0.00040963,120]
[421224172,1777270462653,-1104.0,0.00041041,120]
[421224173,1777270462684,-500.0,0.00041055,120]
[421224174,1777270462715,-150.0,0.00041095,120]
[421224175,1777270462748,-150.0,0.00041095,120]
[421224176,1777270462781,-150.0,0.00041095,120]
[421224177,1777270462811,-150.0,0.00041095,120]
[421224178,1777270462841,-150.0,0.00041095,120]
[421224179,1777270462872,-177.52328714,0.00041095,120]
[421224180,1777270462925,-1000.0,0.00041096,120]
[421224181,1777270462956,-523.0,0.00041096,120]
[421224182,1777270462987,-962.0,0.00041096,120]
[421224183,1777270463021,-50000.0,0.000411,120]
[421224184,1777270463051,-2333.2336,0.000411,120]
[421224185,1777270463085,-166.0,0.000411,120]
[421224186,1777270463116,-309.41547521,0.00041111,120]
[421224187,1777270463150,-1997.67,0.00041112,120]
[421224188,1777270463182,-150.0,0.00041121,120]
[421224189,1777270463213,-767.12175351,0.00041123,120]
[421224190,1777270463242,-202.55216919,0.00041123,120]
[421224191,1777270463271,-198.30715256,0.00041123,120]
[421224192,1777270463301,-208.31133897,0.00041123,120]
[421224193,1777270463331,-227.87252914,0.00041123,120]
[421224194,1777270463360,-2000.0,0.00041135,120]
[421224195,1777270463388,-10000.0,0.000412,120]
[421224196,1777270463418,-50000.0,0.000412,120]
[421224197,1777270463449,-50000.0,0.0004121,120]
[421224198,1777270463481,-1997.67,0.00041212,120]
[421224199,1777270463511,-150.0,0.00041214,120]
[421224200,1777270463540,-50000.0,0.0004122,120]
[421224201,1777270463571,-150.0,0.00041236,120]
[421224202,1777270463599,-250.0,0.0004125,120]
[421224203,1777270463990,-150.0,0.00041251,120]
[421224204,1777270464023,-1997.67,0.00041312,120]
[421224205,1777270464052,-300.54794153,0.00041328,120]
[421224206,1777270464081,-153.58,0.0004135,120]
[421224207,1777270464110,-150.5,0.0004136,120]
[421224208,1777270464155,-256.204952,0.00041369,120]
[421224209,1777270464185,-256.204952,0.00041369,120]
[421224210,1777270464214,-256.204952,0.00041369,120]
[421224211,1777270464244,-256.204952,0.00041369,120]
[421224212,1777270464273,-151.0,0.00041369,120]
[421224213,1777270464303,-1000.0,0.0004137,120]
[421224214,1777270464336,-2000.0,0.00041374,120]
[421224215,1777270464366,-767.12175351,0.00041397,120]
[421224216,1777270464396,-227.87252914,0.00041397,120]
[421224217,1777270464424,-518.0,0.000414,120]
[421224218,1777270464455,-1997.67,0.00041412,120]
[421224219,1777270464484,-151.0,0.00041433,120]
[421224220,1777270464514,-291.37,0.00041452,120]
[421224221,1777270464545,-1358.24,0.00041452,120]
[421224222,1777270464574,-419.01,0.00041452,120]
[421224223,1777270464602,-1774.9,0.00041452,120]
[421224224,1777270464632,-12437.35,0.00041452,120]
[421224225,1777270464661,-1000.0,0.000415,120]
[421224226,1777270464690,-151.0,0.000415,120]
[421224227,1777270464718,-1500.0,0.000415,120]
[421224228,1777270464747,-1000.0,0.000415,120]
[421224229,1777270464775,-250.0,0.000415,120]
[421224230,1777270464803,-1771.78957047,0.000415,120]
[421224231,1777270464833,-1997.67,0.00041512,120]
[421224232,1777270464868,-150.0,0.00041522,120]
[421224233,1777270464897,-1292.38238422,0.00041532,120]
[421224234,1777270464926,-375.1,0.000416,120]
[421224235,1777270464954,-991.33,0.000416,120]
[421224236,1777270464983,-364.22,0.000416,120]
[421224237,1777270465013,-1997.67,0.00041612,120]
[421224238,1777270465059,-394.335664,0.00041643,120]
[421224239,1777270465088,-394.335664,0.00041643,120]
[421224240,1777270465118,-394.335664,0.00041643,120]
[421224241,1777270465148,-394.335664,0.00041643,120]
[421224242,1777270465177,-151.0,0.00041643,120]
[421224243,1777270465207,-151.0,0.00041643,120]
[421224244,1777270465241,-1887.61,0.00041644,120]
[421224245,1777270465271,-1654.15,0.00041644,120]
[421224246,1777270465301,-2896.04,0.00041644,120]
[421224247,1777270465330,-5530.05,0.00041644,120]
[421224248,1777270465359,-453.42,0.00041644,120]
[421224249,1777270465388,-597.41,0.00041644,120]
[421224250,1777270465417,-692.14,0.00041644,120]
[421224251,1777270465447,-580.44,0.00041644,120]
[421224252,1777270465475,-554.59,0.00041644,120]
[421224253,1777270465503,-250.95,0.00041644,120]
[421224254,1777270465533,-1939.65,0.00041644,120]
[421224255,1777270465562,-1000.0,0.00041644,120]
[421224256,1777270465591,-2000.0,0.00041673,120]
[421224257,1777270465620,-166.0,0.000417,120]
[421224258,1777270465649,-2000.0,0.00041703,120]
[421224259,1777270465679,-1997.67,0.00041712,120]
[421224260,1777270465708,-1104.0,0.00041712,120]
[421224261,1777270465737,-250.0,0.0004175,120]
[421224262,1777270465765,-3086.82825048,0.000418,120]
[421224263,1777270465795,-1997.67,0.00041812,120]
[421224264,1777270465825,-150.0,0.00041852,120]
[421224265,1777270465854,-1000.0,0.00041868,120]
[421224266,1777270465883,-1000.0,0.00041868,120]
[421224267,1777270465911,-1000.0,0.00041868,120]
[421224268,1777270465939,-1000.0,0.00041868,120]
[421224269,1777270465967,-1000.0,0.00041868,120]
[421224270,1777270465995,-1000.0,0.00041868,120]
[421224271,1777270466024,-1000.0,0.00041868,120]
[421224272,1777270466052,-1000.0,0.00041868,120]
[421224273,1777270466080,-1000.0,0.00041868,120]
[421224274,1777270466109,-1000.0,0.00041868,120]
[421224275,1777270466136,-1000.0,0.00041868,120]
[421224276,1777270466165,-1000.0,0.00041868,120]
[421224277,1777270466194,-1000.0,0.00041868,120]
[421224278,1777270466223,-1000.0,0.00041868,120]
[421224279,1777270466253,-1000.0,0.00041868,120]
[421224280,1777270466283,-1000.0,0.00041868,120]
[421224281,1777270466312,-1000.0,0.00041868,120]
[421224282,1777270466342,-1000.0,0.00041868,120]
[421224283,1777270466370,-1000.0,0.00041868,120]
[421224284,1777270466399,-1000.0,0.00041868,120]
[421224285,1777270466427,-1000.0,0.00041868,120]
[421224286,1777270466456,-1000.0,0.00041868,120]
[421224287,1777270466484,-1000.0,0.00041868,120]
[421224288,1777270466512,-1000.0,0.00041868,120]
[421224289,1777270466542,-1000.0,0.00041868,120]
[421224290,1777270466572,-1000.0,0.00041868,120]
[421224291,1777270466601,-1000.0,0.00041868,120]
[421224292,1777270466629,-1000.0,0.00041868,120]
[421224293,1777270466658,-1000.0,0.00041868,120]
[421224294,1777270466687,-1000.0,0.00041868,120]
[421224295,1777270466716,-1000.0,0.00041868,120]
[421224296,1777270466746,-1886.99730896,0.00041868,120]
[421224297,1777270466985,-505965.49446671,0.00041875,120]
[421224298,1777270467015,-151.0,0.00041875,120]
[421224299,1777270467045,-290.293923,0.00041875,120]
[421224300,1777270467074,-1084.01,0.0004188,120]
[421224301,1777270467103,-5000.0,0.000419,120]
[421224302,1777270467131,-157.06640264,0.000419,120]
[421224303,1777270467160,-2210.4333703,0.000419,120]
[421224304,1777270467188,-22416.84142742,0.000419,120]
[421224305,1777270467218,-394.335664,0.000419,120]
[421224306,1777270467248,-394.335664,0.000419,120]
[421224307,1777270467278,-394.335664,0.000419,120]
[421224308,1777270467308,-394.335663,0.000419,120]
[421224309,1777270467337,-176.23256496,0.000419,120]
[421224310,1777270467366,-176.23256492,0.000419,120]
[421224311,1777270467395,-1997.67,0.00041912,120]
[421224312,1777270467439,-1826.0,0.00041918,120]
[421224313,1777270467467,-218.5,0.00041958,120]
[421224314,1777270467495,-200.0,0.00041961,120]
[421224315,1777270467523,-2000.0,0.00041971,120]
[421224316,1777270467551,-461.0,0.00041986,120]
[421224317,1777270467580,-202.70207719,0.00042,120]
[421224318,1777270467608,-50000.0,0.00042,120]
[421224319,1777270467638,-50000.0,0.00042,120]
[421224320,1777270467667,-50000.0,0.00042,120]
[421224321,1777270467696,-50000.0,0.00042,120]
[421224322,1777270467724,-50000.0,0.00042,120]
[421224323,1777270467754,-50000.0,0.00042,120]
[421224324,1777270467781,-50000.0,0.00042,120]
[421224325,1777270467810,-50000.0,0.00042,120]
[421224326,1777270467839,-40793.0,0.00042,120]
[421224327,1777270467868,-1060.5391164,0.00042,120]
[421224328,1777270467898,-1000.0,0.00042,120]
[421224329,1777270467926,-500.0,0.00042,120]
[421224330,1777270467954,-2000.0,0.00042,120]
[421224331,1777270467983,-966.47236767,0.00042,120]
[421224332,1777270468011,-2000.8972814,0.00042,120]
[421224333,1777270468040,-500.0,0.00042,120]
[421224334,1777270468069,-3368.01910017,0.00042,120]
[421224335,1777270468098,-200279.32569357,0.00042,120]
[421224336,1777270468127,-10000.0,0.00042,120]
[421224337,1777270468157,-218.0,0.00042,120]
[421224338,1777270468186,-2869.68390645,0.00042,120]
[421224339,1777270468214,-797.67916599,0.00042,120]
[421224340,1777270468243,-21668.86334114,0.00042,120]
[421224341,1777270468270,-2000.0,0.00042,120]
[421224342,1777270468298,-10709.3942557,0.00042,120]
[421224343,1777270468326,-15249.49267996,0.00042,120]
[421224344,1777270468354,-200.57000289,0.00042,120]
[421224345,1777270468384,-1008.0,0.00042,120]
[421224346,1777270468415,-3009.57967394,0.00042,120]
[421224347,1777270468443,-933.3007496,0.00042,120]
[421224348,1777270468473,-10000.0,0.00042,120]
[421224349,1777270468502,-500.0,0.00042,120]
[421224350,1777270468531,-226.07924273,0.00042,120]
[421224351,1777270468559,-452.33715711,0.00042,120]
[421224352,1777270468588,-267.0,0.00042,120]
[421224353,1777270468616,-100000.0,0.00042,120]
[421224354,1777270468646,-181.5251361,0.00042,120]
[421224355,1777270468675,-100000.0,0.00042,120]
[421224356,1777270468704,-100000.0,0.00042,120]
[421224357,1777270468733,-100000.0,0.00042,120]
[421224358,1777270468763,-100000.0,0.00042,120]
[421224359,1777270468792,-100000.0,0.00042,120]
[421224360,1777270468821,-100000.0,0.00042,120]
[421224361,1777270468850,-100000.0,0.00042,120]
[421224362,1777270468881,-100000.0,0.00042,120]
[421224363,1777270468909,-100000.0,0.00042,120]
[421224364,1777270468938,-100000.0,0.00042,120]
[421224365,1777270468967,-100000.0,0.00042,120]
[421224366,1777270468995,-100000.0,0.00042,120]
[421224367,1777270469024,-100000.0,0.00042,120]
[421224368,1777270469052,-100000.0,0.00042,120]
[421224369,1777270469080,-100000.0,0.00042,120]
[421224370,1777270469109,-100000.0,0.00042,120]
[421224371,1777270469138,-38610.50076076,0.00042,120]
[421224372,1777270469167,-25000.0,0.00042,120]
[421224373,1777270469196,-9212.42980978,0.00042,120]
[421224374,1777270469228,-1500.0,0.00042,120]
[421224375,1777270469258,-2000.0,0.00042,120]
[421224376,1777270469291,-2000.0,0.00042,120]
[421224377,1777270469321,-252.98,0.00042,120]
[421224378,1777270469351,-500.0,0.00042,120]
[421224379,1777270469383,-50000.0,0.00042,120]
[421224380,1777270469413,-50000.0,0.00042,120]
[421224381,1777270469444,-50000.0,0.00042,120]
[421224382,1777270469476,-50000.0,0.00042,120]
[421224383,1777270469507,-50000.0,0.00042,120]
[421224384,1777270469537,-50000.0,0.00042,120]
[421224385,1777270469567,-50000.0,0.00042,120]
[421224386,1777270469600,-50000.0,0.00042,120]
[421224387,1777270469631,-50000.0,0.00042,120]
[421224388,1777270469661,-50000.0,0.00042,120]
[421224389,1777270469693,-50000.0,0.00042,120]
[421224390,1777270469725,-50000.0,0.00042,120]
[421224391,1777270470005,-50000.0,0.00042,120]
[421224392,1777270470043,-50000.0,0.00042,120]
[421224393,1777270470074,-50000.0,0.00042,120]
[421224394,1777270470104,-50000.0,0.00042,120]
[421224395,1777270470136,-50000.0,0.00042,120]
[421224396,1777270470167,-50000.0,0.00042,120]
[421224397,1777270470199,-50000.0,0.00042,120]
[421224398,1777270470230,-50000.0,0.00042,120]
[421224399,1777270470263,-50000.0,0.00042,120]
[421224400,1777270470293,-1000.0,0.00042,120]
[421224401,1777270470324,-1000.0,0.00042,120]
[421224402,1777270470356,-1000.0,0.00042,120]
[421224403,1777270470386,-1000.0,0.00042,120]
[421224404,1777270470416,-1000.0,0.00042,120]
[421224405,1777270470447,-1000.0,0.00042,120]
[421224406,1777270470477,-1000.0,0.00042,120]
[421224407,1777270470510,-1000.0,0.00042,120]
[421224408,1777270470541,-1000.0,0.00042,120]
[421224409,1777270470571,-1000.0,0.00042,120]
[421224410,1777270470601,-1000.0,0.00042,120]
[421224411,1777270470631,-1000.0,0.00042,120]
[421224412,1777270470660,-1000.0,0.00042,120]
[421224413,1777270470689,-1000.0,0.00042,120]
[421224414,1777270470718,-1000.0,0.00042,120]
[421224415,1777270470748,-1000.0,0.00042,120]
[421224416,1777270470777,-1000.0,0.00042,120]
[421224417,1777270470807,-1000.0,0.00042,120]
[421224418,1777270470843,-1000.0,0.00042,120]
[421224419,1777270470877,-1000.0,0.00042,120]
[421224420,1777270470907,-1000.0,0.00042,120]
[421224421,1777270470938,-1000.0,0.00042,120]
[421224422,1777270470969,-1000.0,0.00042,120]
[421224423,1777270471000,-1000.0,0.00042,120]
[421224424,1777270471033,-1000.0,0.00042,120]
[421224425,1777270471067,-1000.0,0.00042,120]
[421224426,1777270471100,-1000.0,0.00042,120]
[421224427,1777270471133,-1000.0,0.00042,120]
[421224428,1777270471165,-1000.0,0.00042,120]
[421224429,1777270471198,-1000.0,0.00042,120]
[421224430,1777270471231,-1000.0,0.00042,120]
[421224431,1777270471265,-1886.99730895,0.00042,120]
[421224432,1777270471297,-500.0,0.00042,120]
[421224433,1777270471330,-875.45833424,0.00042,120]
[421224434,1777270471365,-168.0,0.00042,120]
[421224435,1777270471397,-25160.0,0.00042,120]
[421224436,1777270471429,-953.8510988,0.00042,120]
[421224437,1777270471462,-3285.0,0.00042,120]
[421224438,1777270471496,-1384.0,0.00042,120]
[421224439,1777270471530,-2459.19,0.00042,120]
[421224440,1777270471563,-614.79,0.00042,120]
[421224441,1777270471596,-614.79,0.00042,120]
[421224442,1777270471629,-196.06,0.00042,120]
[421224443,1777270471662,-500.0,0.00042,120]
[421224444,1777270471700,-300.0,0.00042,120]
[421224445,1777270471734,-50000.0,0.0004201,120]
[421224446,1777270471767,-50000.0,0.00042011,120]
[421224447,1777270471800,-1997.67,0.00042012,120]
[421224448,1777270471831,-50000.0,0.00042012,120]
[421224449,1777270471861,-50000.0,0.00042013,120]
[421224450,1777270471892,-50000.0,0.00042014,120]
[421224451,1777270471921,-50000.0,0.00042015,120]
[421224452,1777270471952,-50000.0,0.00042016,120]
[421224453,1777270471982,-50000.0,0.00042016,120]
[421224454,1777270472013,-50000.0,0.00042017,120]
[421224455,1777270472043,-50000.0,0.00042018,120]
[421224456,1777270472073,-50000.0,0.00042019,120]
[421224457,1777270472102,-50000.0,0.0004202,120]
[421224458,1777270472133,-50000.0,0.00042021,120]
[421224459,1777270472164,-50000.0,0.00042022,120]
[421224460,1777270472199,-50000.0,0.00042024,120]
[421224461,1777270472231,-50000.0,0.00042025,120]
[421224462,1777270472266,-50000.0,0.00042026,120]
[421224463,1777270472298,-50000.0,0.00042027,120]
[421224464,1777270472329,-50000.0,0.00042028,120]
[421224465,1777270472359,-50000.0,0.00042029,120]
[421224466,1777270472389,-50000.0,0.0004203,120]
[421224467,1777270472420,-50000.0,0.00042031,120]
[421224468,1777270472451,-50000.0,0.00042032,120]
[421224469,1777270472482,-50000.0,0.00042033,120]
[421224470,1777270472520,-50000.0,0.00042034,120]
[421224471,1777270472552,-50000.0,0.00042035,120]
[421224472,1777270472585,-50000.0,0.00042036,120]